Cogmind - Beta 15 @@@ ROGUE MODE // 2025.10.10 @ 20:36:23 Player: Oertel Result: Destroyed by Y-54 Guardian with Flak Gun Performance ------------- Evolutions (3) 1500 Regions Visited (8) 1600 Robots Destroyed (138) 690 Value Destroyed (5849) 5849 Prototype IDs (6) 120 Alien Tech Used (0) 0 Bonus (616) 616 TOTAL SCORE: 10375 Bonus ------- High Alert Combat Kills 682 Entered Garrisons 200 Friendly Fire -266 Cogmind --------- Core Integrity 0/700 Matter 248/300 Energy 99/100 System Corruption 34% Temperature Cool (12) Movement Core (200) Ox3 Location -7/Factory Parts ------- > --- POWER (1) -------- (None) > --- PROPULSION (5) --- (None) > --- UTILITY (4) ------ Medium Storage Unit > --- WEAPON (3) ------- (None) > --- INVENTORY (10) --- Deuterium Engine Deuterium Engine Light Treads Weapon Cycler Precision Assault Rifle Peak State ------------ > --- POWER ------------ Light Nuclear Core > --- PROPULSION ------- Carbon-fiber Leg Carbon-fiber Leg Carbon-fiber Leg Carbon-fiber Leg Improved Carbon-fiber Leg > --- UTILITY ---------- Huge Storage Unit Targeting Computer Kinecellerator Improved Light Armor Plating > --- WEAPON ----------- Precision Assault Rifle Precision Assault Rifle Coil Gun > --- INVENTORY -------- Deuterium Engine Light Deuterium Engine Light Nuclear Core Light Treads Light Treads Light Treads Improved Aluminum Leg Titanium Leg Improved Heat Sink Improved Heat Sink Compact Matter Pod Advanced Targeting Computer Weapon Cycler Heavy Armor Plating Minigun Gauss Rifle Precision Assault Rifle Precision Assault Rifle Coil Gun Coil Gun Advanced Assault Cannon Advanced Assault Cannon Gauss Cannon Rocket Launcher [Rating: 51] Favorites ----------- Power Ion Engine Engine Ion Engine Power Core Light Nuclear Core Propulsion Light Treads Treads Light Treads Leg Carbon-fiber Leg Utility Huge Storage Unit Device Kinecellerator Storage Huge Storage Unit Processor Targeting Computer Protection Light Armor Plating Weapon High-powered Shotgun Ballistic Gun High-powered Shotgun Ballistic Cannon Battle Cannon Launcher Subdweller Shrapnel Launcher Slashing Weapon Chainsword Build | -11 -10 -10 -8 -8 -8 -7 -7 -7 ------- Run | Yrd Mat Sub Mat Gar Mat Fac Was Fac Slots Evolved 6 | . . . 4 . . 2 . . Power . | . . . . . . . . . Propulsion 3 | . . . 2 . . 1 . . Utility 2 | . . . 1 . . 1 . . Weapon 1 | . . . 1 . . . . . Parts Attached 101 | 7 13 10 22 21 4 17 2 5 Power 11 | 2 1 . 2 4 . 1 1 . Engine 10 | 2 1 . 2 3 . 1 1 . Core 1 | . . . . 1 . . . . Reactor . | . . . . . . . . . Propulsion 36 | 2 2 3 6 11 3 7 . 2 Treads 22 | . 2 1 5 7 2 4 . 1 Leg 14 | 2 . 2 1 4 1 3 . 1 Wheel . | . . . . . . . . . Hover . | . . . . . . . . . Flight . | . . . . . . . . . Utility 22 | 1 4 . 4 3 1 6 . 3 Device 6 | . . . 1 . . 4 . 1 Storage 3 | 1 1 . . . . . . 1 Processor 2 | . 1 . 1 . . . . . Hackware . | . . . . . . . . . Protection 11 | . 2 . 2 3 1 2 . 1 Artifact . | . . . . . . . . . Weapon 32 | 2 6 7 10 3 . 3 1 . Energy Gun . | . . . . . . . . . Energy Cannon . | . . . . . . . . . Ballistic Gun 21 | 2 3 4 8 1 . 3 . . Ballistic Cannon 4 | . 1 1 . 1 . . 1 . Launcher 6 | . 2 2 2 . . . . . Special Weapon . | . . . . . . . . . Impact Weapon . | . . . . . . . . . Slashing Weapon 1 | . . . . 1 . . . . Piercing Weapon . | . . . . . . . . . Special Melee Weapon . | . . . . . . . . . Unidentified Prototypes 2 | . . . 1 . . 1 . . Parts Lost 46 | . 2 3 4 17 5 4 7 4 Power 7 | . 1 . 1 4 . 1 . . Propulsion 19 | . . 2 2 6 3 1 3 2 Utility 13 | . . 1 1 3 1 2 3 2 Weapon 7 | . 1 . . 4 1 . 1 . Highest Loss Streak 7 | . 1 1 1 4 4 2 7 4 To Critical Strikes 1 | . . . . . . . 1 . Average Backups 20 | 2 13 21 23 23 23 23 12 5 Power 2 | . 1 2 2 1 1 3 2 2 Propulsion 4 | . 3 3 5 7 5 4 1 1 Utility 5 | . 2 6 7 6 7 6 3 1 Weapon 8 | . 6 9 7 8 8 9 4 1 Tool/Special . | . . . . . . . . . Unused Backups 48 | . . 6 12 2 1 10 13 4 Power 8 | . . 1 1 . . 3 1 2 Propulsion 6 | . . . 1 . 1 1 2 1 Utility 14 | . . . 7 . . 3 4 . Weapon 20 | . . 5 3 2 . 3 6 1 Tool/Special . | . . . . . . . . . Average Slot Usage (%) 91 | . 99 95 92 96 96 98 44 8 Engine 8 | . 14 14 8 5 . 2 3 . Core 1 | . . . . 2 9 4 . . Treads 21 | . 20 18 27 29 21 15 17 1 Leg 8 | . 7 8 6 4 11 22 . 4 Storage 10 | . 14 14 9 9 9 7 3 . Processor 4 | . 8 . 3 9 9 7 3 . Protection 8 | . 5 10 8 8 9 6 3 1 Ballistic Gun 18 | . 15 15 22 25 17 20 10 . Ballistic Cannon 4 | . 12 4 2 . 9 2 . . Launcher 2 | . . 8 1 . . . . . Peak Build Rating 51 | 6 12 17 30 36 36 51 40 13 Average Rating 22 | 4 8 13 27 29 30 44 19 4 On Entrance 18 | . 6 10 16 30 29 36 40 1 Naked Turns 239 | . . . . . . . 129 110 Heaviest Build 118 | 13 92 98 118 108 102 116 116 10 Greatest Support 100 | 20 40 40 82 80 80 100 100 20 Greatest Overweight (x) 6 | 4 2 6 2 5 1 1 4 3 Average Overweight (x) 1 | . 1 2 1 1 1 . . . Largest Inventory Capacity 25 | 8 25 25 25 25 25 25 25 10 Average Capacity 23 | 7 20 25 25 25 25 25 14 5 Most Carried 25 | 4 25 25 25 25 25 25 24 5 Average Carried 21 | 2 13 24 24 23 23 24 12 5 Final Capacity 25 | 8 25 25 25 25 25 25 5 10 Final Carried 25 | 4 24 25 25 25 24 22 5 5 Class Distribution -------------------- 41% | Mutant 36% | Scavenger-Gunner 8% | Scavenger-Mutant 5% | Subdweller-Tank 4% | Gunner 3% | Scavenger-Tank Dominant Class ---------------- Mutant | -10/Materials Mutant | -10/Subcaves Subdweller-Tank | -8/Materials Scavenger-Gunner | -8/Garrison Scavenger-Gunner | -8/Materials Scavenger-Gunner | -7/Factory Mutant | -7/Waste Mutant | -7/Factory Resources | -11 -10 -10 -8 -8 -8 -7 -7 -7 ----------- Run | Yrd Mat Sub Mat Gar Mat Fac Was Fac Matter Collected 5198 | 234 523 412 1103 1396 546 957 . 27 Remotely . | . . . . . . . . . Salvage Created 5552 | . 518 331 1392 1503 506 968 307 27 Parts 257 | . 18 20 80 65 18 52 4 . Haulers Intercepted 7 | . 1 . 3 . 1 2 . . Recyclers Shooed 1 | . . . . . 1 . . . Parts Field Recycled . | . . . . . . . . . Retrieved Matter . | . . . . . . . . . Parts Self-Destructed 14 | . . 14 . . . . . . Prevented . | . . . . . . . . . Kills | -11 -10 -10 -8 -8 -8 -7 -7 -7 ------- Run | Yrd Mat Sub Mat Gar Mat Fac Was Fac Combat Hostiles Destroyed 113 | . 10 10 24 37 10 20 1 1 Melee 1 | . . . . . . . . 1 Guns 86 | . 5 5 22 33 4 16 1 . Cannons 19 | . 5 3 . 1 6 4 . . AOE 7 | . . 2 2 3 . . . . Classes Destroyed 18 | . 5 2 5 5 . . 1 . Worker 3 | . 1 . 1 . . 1 . . Builder 3 | . . . 2 . . 1 . . Hauler 7 | . 1 . 3 . 1 2 . . Recycler 3 | . 2 . 1 . . . . . Operator 1 | . . . 1 . . . . . Watcher 7 | . 1 . 3 1 1 1 . . Swarmer 7 | . . 2 . . . 5 . . Grunt 53 | . 10 . 14 16 7 6 . . Brawler 2 | . . . . 1 1 . . . Duelist 4 | . . . 1 3 . . . . Protector 1 | . . . . 1 . . . . Sentry 23 | . . . 7 11 2 2 . 1 Demolisher 1 | . . . . 1 . . . . Hunter 5 | . . . 2 . . 3 . . Programmer 7 | . . . . 3 . 4 . . Behemoth 1 | . . . . 1 . . . . Compactor 1 | . . . . . . . 1 . Subdweller 8 | . . 8 . . . . . . Thug 1 | . . 1 . . . . . . Best Kill Streak 7 | . 3 4 4 7 3 5 1 1 Combat Bots Only 7 | . 2 4 3 7 3 3 1 1 Max Kills in Single Turn 3 | . 1 2 3 2 1 2 1 1 Gunslinging 1 | . . . . 1 . 1 . . Exploded 1 | . . 1 1 1 . . . . Melee 1 | . . . . . . . . 1 Uniques/NPCs Destroyed . | . . . . . . . . . Combat | -11 -10 -10 -8 -8 -8 -7 -7 -7 -------- Run | Yrd Mat Sub Mat Gar Mat Fac Was Fac Hostile Shots Fired 923 | . 100 36 127 211 39 186 11 213 Missed 289 | . 36 15 39 49 7 63 . 80 Hits 634 | . 64 21 88 162 32 123 11 133 Melee 24 | . . . 4 7 2 . 11 . Projectile 610 | . 64 21 84 155 30 123 . 133 AOE 11 | . 1 . . 8 . . . 2 Critical Strikes 22 | . 1 . 1 9 2 2 7 . Damage Taken 9418 | . 846 495 1427 3074 546 1486 471 1073 Core 1370 | . 109 100 63 378 15 181 122 402 Absorbed by Shields 8 | . . . . 8 . . . . Redirected to Shielding 52 | . 21 31 . . . . . . Core Remaining (%) 44 | 100 . 16 . . 17 . . . Volleys Fired 337 | . 72 19 73 86 27 52 8 . Largest 3 | . 2 2 3 3 3 3 3 . Hottest 103 | . 66 65 103 95 95 95 89 . Shots Fired 894 | . 143 38 211 244 83 155 20 . Gun 712 | . 81 21 178 224 54 136 18 . Cannon 149 | . 60 8 26 7 29 19 . . Launcher 33 | . 2 9 7 13 . . 2 . Special . | . . . . . . . . . Kinetic 868 | . 141 36 204 231 83 155 18 . Thermal . | . . . . . . . . . Explosive 22 | . . . 7 13 . . 2 . Electromagnetic 4 | . 2 2 . . . . . . Robot Hit Streak 19 | . 9 11 8 11 11 19 11 . Robot Miss Streak 6 | . 6 3 4 6 5 3 1 . Penetration Max 1 | . . . . 1 . . . . Secondary Targets 17 | . . 1 2 9 . 4 1 . Max Gunslinging Chain 1 | . . 1 1 1 . 1 1 . Shots Hit Robots 603 | . 86 26 131 175 52 116 17 . Core Hits 289 | . 26 23 71 92 21 43 3 10 Critical Kills 2 | . . . 1 1 . . . . Critical Parts Destroyed 6 | . . . 2 2 1 1 . . Critical Strikes 15 | . 3 . 3 4 2 3 . . Destroy 8 | . . . 3 3 1 1 . . Blast 7 | . 3 . . 1 1 2 . . Melee Attacks 1 | . . . . 1 . . . . Impact . | . . . . . . . . . Slashing 1 | . . . . 1 . . . . Piercing . | . . . . . . . . . Sneak Attacks . | . . . . . . . . . Combat Hostiles . | . . . . . . . . . Follow-up Attacks . | . . . . . . . . . Damage Inflicted 13504 | . 1194 1412 2709 4054 1042 2582 471 40 Guns 9539 | . 617 248 2064 3505 596 2202 307 . Cannons 2019 | . 560 124 307 203 445 380 . . Explosions 1846 | . . 1040 321 321 . . 164 . Melee 25 | . . . . 25 . . . . Ramming 75 | . 17 . 17 . 1 . . 40 Kinetic 12049 | . 1177 863 2371 3708 1041 2582 307 . Thermal 267 | . . 247 20 . . . . . Explosive 786 | . . . 301 321 . . 164 . Electromagnetic 302 | . . 302 . . . . . . Impact . | . . . . . . . . . Slashing 25 | . . . . 25 . . . . Piercing . | . . . . . . . . . Highest Corruption 34 | . . . . 1 3 4 24 34 Average Corruption 10 | . . . . 1 2 3 16 32 Corruption Purged . | . . . . . . . . . Corruption Blocked . | . . . . . . . . . Effects 67 | . . . . 1 16 13 15 22 Message Errors 11 | . . . . . 3 1 1 6 Matter Fused 18 | . . . . . 7 2 7 2 Heat Flow Errors 6 | . . . . . . 2 1 3 Energy Discharges 11 | . . . . . 2 3 1 5 Parts Rejected 2 | . . . . . . 1 1 . Data Loss (minor) 6 | . . . . . 1 3 . 2 Data Loss (major) 2 | . . . . . 1 . . 1 Misfires 2 | . . . . . 2 . . . Alerts 1 | . . . . 1 . . . . Misdirections 7 | . . . . . . . 4 3 Weapon Failures 1 | . . . . . . 1 . . Overload Shots . | . . . . . . . . . Overflow Damage 65 | . . . 10 55 . . . . Projectiles 16 | . . . 10 6 . . . . Explosions 49 | . . . . 49 . . . . Melee . | . . . . . . . . . Knockbacks 20 | . 9 1 . 2 5 3 . . Impact . | . . . . . . . . . Kinetic 18 | . 8 1 . 1 5 3 . . Secondary 2 | . 1 . . 1 . . . . Self-Inflicted Damage 134 | . . 34 . 88 . . . 12 Shots 2 | . . 1 . 1 . . . . Rammed 41 | . 1 . 2 . 1 . . 37 Targets Rammed 45 | . 3 . 4 . 1 . . 37 Kicked 4 | . 2 . 2 . . . . . Crushed . | . . . . . . . . . Highest Temperature 340 | . 32 1 137 340 204 261 215 158 Average Temperature 58 | . 9 1 30 85 86 58 48 73 Received Heat Transfer 3126 | . 462 69 594 1101 270 324 . 306 Effects 1 | . . . . 1 . . . . Energy Bleed 1 | . . . . 1 . . . . Siege Activations . | . . . . . . . . . Martial Activations . | . . . . . . . . . Shielding Activations . | . . . . . . . . . Robots Disrupted . | . . . . . . . . . Combat Hostiles . | . . . . . . . . . Robots Corrupted . | . . . . . . . . . Combat Hostiles . | . . . . . . . . . Parts Fried . | . . . . . . . . . Impact Corruptions . | . . . . . . . . . Robots Melted . | . . . . . . . . . Combat Hostiles . | . . . . . . . . . Parts Melted . | . . . . . . . . . Heat Transferred 300 | . . 250 50 . . . . . Parts Sabotaged . | . . . . . . . . . Parts Stolen . | . . . . . . . . . Parts Stripped . | . . . . . . . . . Power Chain Reactions 1 | . . 1 . . . . . . Alert | -11 -10 -10 -8 -8 -8 -7 -7 -7 ------- Run | Yrd Mat Sub Mat Gar Mat Fac Was Fac Maximum Alert Level 4 | . . . 2 4 2 1 . . Low Security (%) 50 | 100 100 . 33 . . 83 100 100 Level 1 18 | . . . 48 15 . 16 . . Level 2 20 | . . . 18 31 100 . . . Level 3 8 | . . . . 43 . . . . Level 4 2 | . . . . 10 . . . . Level 5 . | . . . . . . . . . High Security . | . . . . . . . . . Max Security . | . . . . . . . . . Peak Influence 1173 | . 51 . 438 1173 588 251 83 30 Initial 571 | . . . 23 268 571 207 83 . Average 279 | . 15 . 240 703 525 136 23 2 Influence Increases 3396 | . 335 50 973 1075 286 606 11 60 Destroy 0b10 Robot/C 2060 | . 200 40 480 720 200 400 . 20 Destroy 0b10 Robot/NC 125 | . 25 . 55 10 10 25 . . Destroy Leader 406 | . 54 10 152 20 44 116 . 10 Successful Hack 58 | . 24 . 27 . 7 . . . Disable Machine 180 | . 15 . 135 . 15 15 . . Anti-Garrison Action 200 | . . . . 200 . . . . Destroy Structure 172 | . 2 . 64 80 10 5 11 . Partial Spotted 15 | . . . . . . 15 . . Lose Combat Pursuer 180 | . 15 . 60 45 . 30 . 30 Influence Decreases 3396 | . 297 42 606 315 1002 824 250 60 Entered New Map 1195 | . . 19 23 145 602 250 156 . Time Decay 1870 | . 287 23 552 . 350 534 64 60 Lost Part 311 | . 10 . 31 170 50 40 10 . Lost Ally 20 | . . . . . . . 20 . Squads Dispatched 17 | . 3 . 7 . . 5 . 2 Investigation 3 | . 1 . . . . 2 . . Extermination 4 | . . . . . . 3 . 1 Reinforcement 6 | . 2 . 3 . . . . 1 Assault . | . . . . . . . . . Garrison 4 | . . . 4 . . . . . Intercept . | . . . . . . . . . Searches Triggered . | . . . . . . . . . Construction Impeded 1 | . . . 1 . . . . . Haulers Reinforced . | . . . . . . . . . Active Scanning Responses . | . . . . . . . . . Cargo Convoy Interrupts . | . . . . . . . . . Stealth | -11 -10 -10 -8 -8 -8 -7 -7 -7 --------- Run | Yrd Mat Sub Mat Gar Mat Fac Was Fac Distress Signals 13 | . 1 . 5 4 2 1 . . Communications Jammed . | . . . . . . . . . Distress Signals . | . . . . . . . . . Times Spotted 171 | . 21 20 39 42 12 24 6 7 Peak Tracking Total 11 | . 4 10 4 11 4 4 5 6 Tactical Retreats 10 | . 1 . 3 2 . 1 1 2 Traps | -11 -10 -10 -8 -8 -8 -7 -7 -7 ------- Run | Yrd Mat Sub Mat Gar Mat Fac Was Fac Traps Triggered 11 | . 1 2 . 4 1 3 . . Indirectly 1 | . 1 . . . . . . . Trap Hack Attempts . | . . . . . . . . . Triggered . | . . . . . . . . . Disarmed . | . . . . . . . . . Reprogrammed . | . . . . . . . . . Reused . | . . . . . . . . . Traps Extracted . | . . . . . . . . . Installed . | . . . . . . . . . Triggered . | . . . . . . . . . Machines | -11 -10 -10 -8 -8 -8 -7 -7 -7 ---------- Run | Yrd Mat Sub Mat Gar Mat Fac Was Fac Machines Disabled 15 | . 1 . 9 3 1 1 . . Max in Single Turn 2 | . 1 . 2 1 1 1 . . Garrison Relay 1 | . . . . 1 . . . . Phase Generator 1 | . . . . 1 . . . . Machines Repaired . | . . . . . . . . . Machines Dismantled . | . . . . . . . . . Machines Sabotaged . | . . . . . . . . . Overloaded Fab Kills . | . . . . . . . . . Hacking | -11 -10 -10 -8 -8 -8 -7 -7 -7 --------- Run | Yrd Mat Sub Mat Gar Mat Fac Was Fac Machines Accessed 27 | . 5 2 7 2 4 7 . . Terminals 20 | . 4 . 5 2 3 6 . . Fabricators . | . . . . . . . . . Repair Stations 2 | . . . . . 1 1 . . Recycling Units 1 | . 1 . . . . . . . Scanalyzers 1 | . . . 1 . . . . . Garrison Access 1 | . . . 1 . . . . . Total Hacks 54 | . 8 2 16 3 11 14 . . Successful 25 | . 4 2 9 1 6 3 . . Failed 29 | . 4 . 7 2 5 11 . . Catastrophic 7 | . 1 . 2 . . 4 . . Database Lockouts . | . . . . . . . . . Manual . | . . . . . . . . . Terminals 40 | . 7 . 10 3 8 12 . . Fabricators . | . . . . . . . . . Repair Stations 5 | . . . . . 3 2 . . Recycling Units 1 | . 1 . . . . . . . Scanalyzers 5 | . . . 5 . . . . . Garrison Access 1 | . . . 1 . . . . . Terminal Hacks 18 | . 3 2 4 1 5 3 . . Record 3 | . . 1 2 . . . . . Robot Schematic 1 | . . . . . . 1 . . Robot Analysis 1 | . . . . . 1 . . . Prototype ID Bank 2 | . . . 1 . 1 . . . Open Door 1 | . . 1 . . . . . . Open DSF 1 | . . . . . . 1 . . Emergency Access Points 1 | . . . . 1 . . . . Terminal Index 1 | . . . . . . 1 . . Alert Level 1 | . . . . . 1 . . . Locate Traps 1 | . . . . . 1 . . . Dispatch Records 1 | . 1 . . . . . . . Security Status 1 | . . . . . 1 . . . Hauler Manifests 2 | . 1 . 1 . . . . . Zone Layout 1 | . 1 . . . . . . . Fabricator Hacks . | . . . . . . . . . Repair Station Hacks 1 | . . . . . 1 . . . Scan Component 1 | . . . . . 1 . . . Recycling Unit Hacks 1 | . 1 . . . . . . . Report Inventory 1 | . 1 . . . . . . . Scanalyzer 4 | . . . 4 . . . . . Insert Component 2 | . . . 2 . . . . . Analyze 2 | . . . 2 . . . . . Garrison Access Hacks 1 | . . . 1 . . . . . Unlock Access 1 | . . . 1 . . . . . Unauthorized Hacks . | . . . . . . . . . Terminals . | . . . . . . . . . Fabricators . | . . . . . . . . . Repair Stations . | . . . . . . . . . Recycling Units . | . . . . . . . . . Scanalyzers . | . . . . . . . . . Garrison Access . | . . . . . . . . . Data Cores Recovered . | . . . . . . . . . Used . | . . . . . . . . . Hacking Detections 18 | . 4 . 4 1 3 6 . . Full Trace Events . | . . . . . . . . . Feedback Events . | . . . . . . . . . Feedback Blocked . | . . . . . . . . . Robot Schematics Acquired 1 | . . . . . . 1 . . Robots Built . | . . . . . . . . . Authchips . | . . . . . . . . . Time . | . . . . . . . . . Total Robot Build Rating . | . . . . . . . . . Part Schematics Acquired 2 | . . . 2 . . . . . Parts Built . | . . . . . . . . . Authchips . | . . . . . . . . . Time . | . . . . . . . . . Total Part Build Rating . | . . . . . . . . . Parts Repaired . | . . . . . . . . . Time . | . . . . . . . . . Parts Recycled . | . . . . . . . . . Recycled Matter . | . . . . . . . . . Retrieved Matter . | . . . . . . . . . Retrieved Components . | . . . . . . . . . Parts Scanalyzed 2 | . . . 2 . . . . . Part Schematics Acquired 2 | . . . 2 . . . . . Parts Damaged . | . . . . . . . . . Bothacking | -11 -10 -10 -8 -8 -8 -7 -7 -7 ------------ Run | Yrd Mat Sub Mat Gar Mat Fac Was Fac Used RIF Installer . | . . . . . . . . . Robots Hacked . | . . . . . . . . . Non-combat . | . . . . . . . . . Combat . | . . . . . . . . . Robot Hacks Applied . | . . . . . . . . . Relay Couplers Released 4 | . . . . 4 . . . . Machine Destruction 4 | . . . . 4 . . . . Fabnet Peak Effective % . | . . . . . . . . . Robots Rewired . | . . . . . . . . . Allies Hacked . | . . . . . . . . . Hacks Repelled . | . . . . . . . . . Allies | -11 -10 -10 -8 -8 -8 -7 -7 -7 -------- Run | Yrd Mat Sub Mat Gar Mat Fac Was Fac Total Allies 1 | . . . . . . . 1 . Largest Group 1 | . . . . . . . 1 . Highest-Rated Group 31 | . . . . . . . 31 . Highest-Rated Ally 31 | . . . . . . . 31 . Initial Warlord ECA Mod 13 | . . . . . 4 3 3 3 Total Orders . | . . . . . . . . . Ally Attacks 16 | . . . . . . . 16 . Total Damage 235 | . . . . . . . 235 . Kills . | . . . . . . . . . Allies Corrupted . | . . . . . . . . . Allies Melted . | . . . . . . . . . Intel | -11 -10 -10 -8 -8 -8 -7 -7 -7 ------- Run | Yrd Mat Sub Mat Gar Mat Fac Was Fac Active Infowar (turns) 165 | . . . 165 . . . . . Optics 165 | . . . 165 . . . . . Robot Analysis Total 1 | . . . . . 1 . . . Derelict Logs Recovered 1 | . . 1 . . . . . . Drone Launches . | . . . . . . . . . Drone Recoveries . | . . . . . . . . . Exploration | -11 -10 -10 -8 -8 -8 -7 -7 -7 ------------- Run | Yrd Mat Sub Mat Gar Mat Fac Was Fac Turns Passed 11793 | 88 1498 3375 2073 1711 783 1513 315 437 Spaces Moved 4461 | 58 514 983 705 588 310 592 310 401 Core 520 | 16 . . . . . . 274 230 Treads 2509 | . 298 688 605 503 174 192 36 13 Legs 1432 | 42 216 295 100 85 136 400 . 158 Wheels . | . . . . . . . . . Hover . | . . . . . . . . . Flight . | . . . . . . . . . Fastest Speed 50 | 50 120 320 235 190 190 162 50 50 Average Speed 227 | 129 235 333 240 234 218 205 79 93 Slowest Speed 560 | 250 320 540 260 560 240 242 320 200 Overloaded Moves . | . . . . . . . . . Propulsion Burnouts . | . . . . . . . . . Robots Hopped . | . . . . . . . . . Potential Cave-ins 1 | . . . . . . . 1 . Cave-ins Triggered . | . . . . . . . . . Exploration Rate (%) 40 | 4 79 50 40 66 22 15 82 6 Regions Visited 8 Branch Regions 1 Pre-discovered Areas . | . . . . . . . . . Known Exits Taken 1 | . . . 1 . . . . . Unknown Exits Taken 4 | 1 1 1 . . 1 . . . Scrap Searched . | . . . . . . . . . Spaces Dug 7 | . . . 7 . . . . . Terrain Destroyed 279 | . . 95 55 94 16 6 13 . Melee . | . . . . . . . . . Projectile 26 | . . . 3 1 16 6 . . AOE 253 | . . 95 52 93 . . 13 . Terrain Rammed . | . . . . . . . . . Walls Destroyed . | . . . . . . . . . Machines Disabled . | . . . . . . . . . Actions | -11 -10 -10 -8 -8 -8 -7 -7 -7 --------- Run | Yrd Mat Sub Mat Gar Mat Fac Was Fac Total 5436 | 67 657 1060 944 749 359 797 360 443 Wait 200 | . 32 2 48 1 4 77 36 . Move 4455 | 57 513 982 705 587 309 592 309 401 Hop . | . . . . . . . . . Pick Up 148 | 3 22 23 45 22 6 25 2 . Fast Attach 23 | 6 1 . . 2 2 4 3 5 Attach 42 | . 2 3 9 16 5 7 . . Detach 3 | . . 1 . . . 2 . . Swap 76 | 1 11 9 23 17 3 11 1 . Drop 93 | . 1 21 35 6 2 27 1 . Fire 337 | . 72 19 73 86 27 52 8 . Melee 1 | . . . . 1 . . . . Ram 10 | . . . . . . . . 10 Kick 4 | . 2 . 2 . . . . . Crush 31 | . 1 . 2 . 1 . . 27 Escape Stasis 11 | . . . . 11 . . . . Rewire . | . . . . . . . . . Trap . | . . . . . . . . . Miscellaneous 2 | . . . 2 . . . . . Route ------- -11/Scrapyard -10/Materials (discovered 4 exits: [*Mat x2] / [*Min] / *Sub) -10/Subcaves -8/Materials (discovered 3 exits: *Fac x2 / Gar) -8/Garrison (discovered 2 exits: *Mat x2) -8/Materials -7/Factory -7/Waste -7/Factory History --------- Turn | Location | Event 33 | -11/Scrapyard | Discovered new exit (range 14) 89 | -11/Scrapyard | Entered Materials 152 | -10/Materials | Discovered new exit (range 16) 302 | -10/Materials | Build established: Mutant 559 | -10/Materials | Discovered new exit (range 5) 1461 | -10/Materials | Discovered new exit (range 16) 1562 | -10/Materials | Discovered new exit (range 9) 1587 | -10/Materials | Entered Subcaves 1776 | -10/Subcaves | Ambushed by swarm of Subdwellers 1776 | -10/Subcaves | Ambushed by Subdwellers from Twisted Machinery 1776 | -10/Subcaves | Ambushed by Subdwellers from Twisted Machinery 1776 | -10/Subcaves | Ambushed by Subdwellers from Twisted Machinery 1776 | -10/Subcaves | Ambushed by Subdwellers from Twisted Machinery 1787 | -10/Subcaves | Core integrity fell below 50% 4167 | -10/Subcaves | Discovered new exit (range 13) 4488 | -10/Subcaves | Build established: Scavenger-Mutant 4610 | -10/Subcaves | Learned Materials terminal intel 4624 | -10/Subcaves | Core integrity fell below 20% 4962 | -10/Subcaves | Entered Materials 4962 | -8/Materials | Evolved 4 slots: Propulsion x2, Utility x1, Weapon x1 4963 | -8/Materials | Loaded intel: 12 terminal locations 5375 | -8/Materials | Garrison activated, responded to threat 5552 | -8/Materials | Build established: Subdweller-Tank 5634 | -8/Materials | Discovered new exit (range 11) 5938 | -8/Materials | Garrison activated, responded to threat 6003 | -8/Materials | Discovered new exit (range 20) 6475 | -8/Materials | Build established: Gunner 6795 | -8/Materials | Build established: Scavenger-Gunner 7035 | -8/Materials | Identified exit to Garrison 7035 | -8/Materials | Entered Garrison 7053 | -8/Garrison | Triggered checkpoint 7111 | -8/Garrison | Lost 3 parts (2n1u) 7187 | -8/Garrison | Triggered checkpoint 7201 | -8/Garrison | Triggered checkpoint 7293 | -8/Garrison | Triggered checkpoint 7341 | -8/Garrison | Core integrity fell below 50% 7359 | -8/Garrison | Lost 4 parts (1p2n1w) 7365 | -8/Garrison | Destroyed 7 combat bots 7545 | -8/Garrison | Spotted B-75 Beast 7575 | -8/Garrison | Destroyed B-75 Beast 7602 | -8/Garrison | Lost 3 parts (1p1u1w) 7691 | -8/Garrison | Discovered new exit (range 15) 7785 | -8/Garrison | Triggered checkpoint 7798 | -8/Garrison | Garrison Relay disabled 8138 | -8/Garrison | Discovered new exit (range 12) 8574 | -8/Garrison | Phase Generator disabled 8629 | -8/Garrison | Core integrity fell below 20% 8746 | -8/Garrison | Entered Materials 9079 | -8/Materials | Lost 4 parts (3n1u) 9245 | -8/Materials | Discovered new exit (range 14) 9529 | -8/Materials | Entered Factory 9529 | -7/Factory | Evolved 2 slots: Propulsion x1, Utility x1 10227 | -7/Factory | Discovered new exit (range 6) 11042 | -7/Factory | Sucked down chute 11042 | -7/Factory | Entered Waste 11043 | -7/Waste | Met a frightened Derelict 11057 | -7/Waste | EMP discharged 11082 | -7/Waste | Spotted C-40 Crusher 11139 | -7/Waste | Spotted C-40 Crusher 11141 | -7/Waste | Spotted C-40 Crusher 11154 | -7/Waste | Destroyed C-40 Crusher 11157 | -7/Waste | EMP discharged 11157 | -7/Waste | System corruption reached 10% 11169 | -7/Waste | Spotted C-40 Crusher 11179 | -7/Waste | Crushed by Compactor (1 part destroyed, 2 dropped) 11182 | -7/Waste | Crushed by Compactor (0 parts destroyed, 2 dropped) 11186 | -7/Waste | Crushed by Compactor (1 part destroyed) 11189 | -7/Waste | Crushed by Compactor (0 parts destroyed, 1 dropped) 11192 | -7/Waste | Crushed by Compactor (1 part destroyed, 1 dropped) 11205 | -7/Waste | Crushed by Compactor (1 part destroyed) 11216 | -7/Waste | Spotted C-40 Crusher 11236 | -7/Waste | Lost 7 parts (3n3u1w) 11257 | -7/Waste | EMP discharged 11287 | -7/Waste | Spotted C-40 Crusher 11338 | -7/Waste | Discovered new exit (range 12) 11357 | -7/Waste | EMP discharged 11357 | -7/Waste | System corruption reached 30% 11357 | -7/Waste | Entered Factory 11478 | -7/Factory | Build established: Mutant 11551 | -7/Factory | Core integrity fell below 50% 11702 | -7/Factory | Core integrity fell below 20% 11732 | -7/Factory | Lost 4 parts (2n2u) 11794 | -7/Factory | Destroyed by Y-54 Guardian with Flak Gun Last Messages --------------- 11710_ Destabilizing: Core damaged (-14). 11711_ U-05 Engineer lays Concrete. 11711_ Slammed into Y-54 Guardian. 11712_ U-05 Engineer lays Concrete. 11712_ Slammed into Y-54 Guardian. 11712_ Y-54 Guardian destroyed. 11713_ Acquired 27 matter. 11713_ U-05 Engineer lays Concrete. 11722_ System corrupted: Heat flow error (+101). 11730_ Acquired Med. Storage Unit. 11740_ &SYYNCGEZIUK3HJHC :XWJBGDW 11755_ System corrupted: Substantial component data lost. 11770_ System corrupted: Heat flow error (+125). 11782_ ALERT: Potential suspicious activity detected, Programmers report to Factory Zone 2E. 11792_ ALERT: Hostiles spotted, dispatching reinforcements to Terminal F013. [Achievement: 10k Club] Map ----- +----------------------------------------------------+ | ???????????# # ## #?# #??? | | ???????????# + ############### #??? | | ???????????# # # ## #??? | | ???????????# # # ! ! ## #??? | | ???????????# # # !! ## #??? | | ???????????# # # ! ## #??? | | ???????????########### # ## #??? | | ?????????????????????# # "" "" + #??? | | ?????????############# + "" "" ## #??? | | ?? # """ """ ## #??? | | ??????# ##### ##### # """ """ ## #??? | | ???????????????# #???# # """ """ ## #??? | | ????????????####+########### ## #??? | | ????????????# # ## #??? | | ????????????# ##############! ??? | | ????????????# ]] + #?? | | ????????????# ] ###########??? !??? | | ????????????# #?????????????# #??? | | ????????????# #?????????????? ???? | | ???????????##########+######?????????????? ???? | | ???????????+ #??????????????????#???? | | ?????????????## #??????????????????????? | | ??????????????# ##########?????????????? | | ?????????###### # ! #?????????????? | | ?????? #" ! #?????????????? | | ?????? #T@ #?????????????? | | ???????"" """ """ """ #" /[ #?????????????? | | ??????????""" """ """ + /[ Y#????????????? | | ???????????"" """ """ # """ / ##????????????? | | ????????????? "" "" # """ #?????????????? | | ?????????????? "" "" # """ #?????????????? | | ??????????????? # #?????????????? | | ?????????????? ##########?????????????? | | ??????????????? #??????????????????????? | | ??????????????? #??????????????????????? | | ?????????????? #??????????????????????? | | ?????????????? #??????????????????????? | | ??????????????? +??????????????????????? | | ??????????????"" """ ???????????????????????? | | ???????????????" """ ???????????????????????? | | ???????????????????" ???????????????????????? | | ???????????????????? ???????????????????????? | | ??????????????????????????????????????????????? | | ??????????????????????????????????????????????? | | ??????????????????????????????????????????????? | | ??????????????????????????????????????????????? | | ??????????????????????????????????????????????? | | ??????????????????????????????????????????????? | | ??????????????????????????????????????????????? | | ??????????????????????????????????????????????? | +----------------------------------------------------+ Best States ------------- Heat Dissipation 34 Energy Generation 18 Energy Capacity 275 Matter Stores 300 Matter Capacity 300 Sight Range 21 Terrain Scan Density 10 Armor Coverage 800 Propulsion Shielding 33 Weapon Cycling 15 Evasion (%) 55 Targeting Accuracy 5 Recoil Reduction 5 Kinecelleration 30 Item Schematics ----------------- Adv. Treads | -8/Materials | Scanalyzed Hrd. Medium Armor Plating | -8/Materials | Scanalyzed Robot Schematics ------------------ X-62 Marksman | -7/Factory | Hacked Fabricated ------------ Nothing Repaired ---------- Nothing Alien Tech Used ----------------- None Achievements -------------- 10k Club Challenges ------------ None Game ------ Seed CommAntigravTriangulator Manual? 0 Play Time 03:01:06 Cumulative 16.4 hours Start 2025.10.10 @ 00:29:03 End 2025.10.10 @ 20:36:23 Sessions 3 Manual Loads 0 Difficulty Rogue Special Mode None Game No. 9 Rogue 9 Adventurer 0 Explorer 0 Win Type - Total 0 Types 0/0/0/0/0/0/0/0/0/0 Lore% 10 Gallery% 11 Achievement% 16 Wizard Run 0 Options --------- Layout 1 ASCII 0 Keyboard 0 Movement Mouse Keybinds 0 Fullscreen 2 Font 32/Tamsyn Map View 50x35 Zoom Use 0% Tactical HUD 1 Map Filters NONE Filters NONE Steam 1 RUN: 5ec9bdec-5688-4cc7-8d3c-baf1ee4ecae9